fUST/lending_fUST_20250420
["ID","MTS","AMOUNT","RATE_DAILY","PERIOD"]
[358444583,1745152232477,-1126.18778725,0.00018522,2]
[358444584,1745152232486,-1126.18778725,0.00018545,2]
[358444585,1745152232495,-1126.18778725,0.00018567,2]
[358444586,1745152232505,-151.0,0.00018567,2]
[358444587,1745152232514,-500.0,0.00018573,2]
[358444588,1745152232523,-500.0,0.00018573,2]
[358444589,1745152232532,-500.21282221,0.00018573,2]
[358444590,1745152232541,-264.45383592,0.00018577,2]
[358444591,1745152232550,-500.0,0.00018577,2]
[358444592,1745152232559,-500.0,0.00018577,2]
[358444593,1745152232568,-500.0,0.00018577,2]
[358444594,1745152232577,-500.0,0.00018577,2]
[358444595,1745152232587,-500.0,0.00018577,2]
[358444596,1745152232596,-500.0,0.00018577,2]
[358444597,1745152232606,-256.73650223,0.00018577,2]
[358444598,1745152232616,-500.0,0.00018577,2]
[358444599,1745152232625,-500.0,0.00018577,2]
[358444600,1745152232634,-500.0,0.00018577,2]
[358444601,1745152232643,-215.07989107,0.00018577,2]
[358444602,1745152232652,-500.0,0.00018577,2]
[358444603,1745152232660,-622.37368965,0.00018577,2]
[358444604,1745152232670,-500.0,0.00018577,2]
[358444605,1745152232679,-500.0,0.00018577,2]
[358444606,1745152232688,-500.0,0.00018577,2]
[358444607,1745152232697,-500.0,0.00018577,2]
[358444608,1745152232706,-500.0,0.00018577,2]
[358444609,1745152232715,-500.0,0.00018577,2]
[358444610,1745152232725,-500.0,0.00018577,2]
[358444611,1745152232734,-500.0,0.00018577,2]
[358444612,1745152232743,-500.0,0.00018577,2]
[358444613,1745152232753,-500.0,0.00018577,2]
[358444614,1745152232762,-500.0,0.00018577,2]
[358444615,1745152232771,-157.93232749,0.00018577,2]
[358444616,1745152232781,-33722.5043308,0.00018578,2]
[358444617,1745152232790,-66284.87204947,0.00018578,2]
[358444618,1745152232802,-10425.13081098,0.00018578,2]
[358444619,1745152232814,-2007.73760735,0.00018578,2]
[358444620,1745152232825,-1255.69501098,0.00018578,2]
[358444621,1745152232837,-16177.35057766,0.00018578,2]
[358444682,1745152238555,-927.57714494,0.00018577,3]
[358444685,1745152238566,-30098.04554449,0.00018578,2]
[358444687,1745152238577,-56695.4397829,0.00018578,2]
[358444692,1745152238610,-462.83688589,0.00018578,2]
[358445025,1745153432821,-250.0,0.00018277,2]
[358445026,1745153432832,-1000.0,0.00018377,2]
[358445027,1745153432842,-1966.20813165,0.00018383,2]
[358445028,1745153432851,-300.0,0.00018472,2]
[358445029,1745153432861,-500.0,0.00018473,2]
[358445030,1745153432870,-417.85433263,0.00018473,2]
[358445031,1745153432880,-160.0,0.00018475,2]
[358445032,1745153432889,-300.0,0.00018476,2]
[358445033,1745153432899,-185.11768514,0.00018477,2]
[358445034,1745153432909,-500.0,0.00018477,2]
[358445035,1745153432919,-500.0,0.00018477,2]
[358445037,1745153432928,-500.0,0.00018477,2]
[358445039,1745153432939,-500.0,0.00018477,2]
[358445040,1745153432948,-500.0,0.00018477,2]
[358445041,1745153432958,-500.0,0.00018477,2]
[358445042,1745153432967,-212.23466897,0.00018477,2]
[358445043,1745153432976,-411.45981848,0.00018477,2]
[358445044,1745153432987,-500.0,0.00018477,2]
[358445045,1745153432996,-500.0,0.00018477,2]
[358445046,1745153433006,-16861.2521654,0.00018478,2]
[358445047,1745153433019,-1006.0804482,0.00018478,3]
[358445048,1745153433029,-43373.37037641,0.00018478,2]
[358445071,1745153438846,-451.74297544,0.00018478,2]
[358445077,1745153438901,-3784.634302,0.00018478,2]
[358445762,1745154631823,-277.65524732,0.00018367,2]
[358445763,1745154631833,-1897.637105,0.00018367,2]
[358445764,1745154631843,-9.29139915,0.00018367,2]
[358445813,1745154638098,-198.10860085,0.00018367,2]
[358445815,1745154638108,-347.37043056,0.00018375,2]
[358445817,1745154638118,-300.0,0.00018376,2]
[358445819,1745154638127,-300.0,0.00018376,2]
[358445821,1745154638137,-177.95381369,0.00018377,2]
[358445823,1745154638146,-190.24829655,0.00018377,2]
[358445825,1745154638156,-500.0,0.00018377,2]
[358445827,1745154638166,-272.6155913,0.00018377,2]
[358445829,1745154638179,-227.3844087,0.00018377,2]
[358445833,1745154638188,-500.0,0.00018377,2]
[358445835,1745154638197,-339.53443098,0.00018377,2]
[358445837,1745154638207,-500.0,0.00018377,2]
[358445839,1745154638216,-500.0,0.00018377,2]
[358445841,1745154638225,-500.0,0.00018377,2]
[358445843,1745154638235,-500.0,0.00018377,2]
[358445845,1745154638244,-500.0,0.00018377,2]
[358445847,1745154638257,-500.0,0.00018377,2]
[358445849,1745154638266,-500.0,0.00018377,2]
[358445851,1745154638275,-2.64835162,0.00018378,2]
[358445853,1745154638286,-255.83204123,0.00018378,2]
[358445855,1745154638298,-3132.03581426,0.00018378,2]
[358445899,1745154640142,-618.4393119,0.00018378,2]
[358445900,1745154640254,-700.2151947,0.00018378,2]
[358445901,1745154640268,-1455.3558977,0.00018378,2]
[358445905,1745154643083,-2266.09947129,0.00018378,2]
[358445906,1745154643093,-3114.27019797,0.00018378,3]
[358445907,1745154643103,-104155.9821147,0.00018378,2]
[358445908,1745154643115,-5547.29475067,0.00018378,2]
[358445931,1745154651746,6178.2523,0.00018,30]
[358445941,1745155718443,-1058.0,0.00016,2]
[358445943,1745155733792,1736.1503438,0.00015,2]
[358445966,1745155832134,-68.0,0.00016,2]
[358445967,1745155832145,-250.0,0.00016582,2]
[358445968,1745155832155,-250.0,0.00017129,2]
[358445969,1745155832165,-6264.0747723,0.00017311,2]
[358445970,1745155832175,-170.6921787,0.00017326,2]
[358445971,1745155832184,-211.1174264,0.00017376,2]
[358445972,1745155832194,-764.473905,0.00017402,2]
[358445973,1745155832204,-300.0,0.00017999,2]
[358445974,1745155832213,-300.0,0.00017999,2]
[358445975,1745155832223,-300.0,0.00017999,2]
[358445976,1745155832236,-481.58875997,0.00017999,2]
[358445977,1745155832246,-10567.11804734,0.00018,2]
[358445978,1745155832256,-298513.01302277,0.00018,2]
[358445979,1745155832269,-8286.7489693,0.00018,2]
[358445980,1745155832282,-451.79522765,0.00018,2]
[358445981,1745155832295,-960.05583154,0.00018,2]
[358445982,1745155833458,3090.52491702,0.00018,3]
[358445994,1745155838239,-500.0,0.00017999,2]
[358445995,1745155838248,-194.2,0.00017999,2]
[358446011,1745156427671,-206.1383946,0.00017898,2]
[358446012,1745156427697,-206.13839459,0.00017906,2]
[358446013,1745156427719,-180.63757156,0.00017953,2]
[358446014,1745156427741,-300.0,0.00017972,2]
[358446015,1745156427762,-300.0,0.00017972,2]
[358446016,1745156433205,2171.28198224,0.00017873,2]
[358446017,1745156463046,300.0,0.00017972,2]
[358446019,1745156913304,3448.27244436,0.00018,3]
[358446033,1745157032332,-161.8188125,0.00016984,2]
[358446034,1745157032343,-264.3611875,0.00017731,2]
[358446038,1745157032453,-35.6388125,0.00017731,2]
[358446039,1745157032462,-518.19181793,0.00017732,2]
[358446040,1745157032474,-10841.95641687,0.00017732,2]
[358446042,1745157032485,-298.30937876,0.00017747,2]
[358446043,1745157032496,-1899.87173446,0.00017795,2]
[358446044,1745157032506,-22435.14008634,0.00017895,2]
[358446045,1745157032529,-475.9,0.00017895,2]
[358446053,1745157038623,-500.0,0.00017894,2]
[358446054,1745157038634,-344.75292236,0.00017894,2]
[358446055,1745157038645,-500.0,0.00017894,2]
[358446056,1745157038655,-500.0,0.00017894,2]
[358446057,1745157038666,-500.0,0.00017894,2]
[358446058,1745157038676,-500.0,0.00017894,2]
[358446059,1745157038685,-300.0,0.00017894,2]
[358446060,1745157038695,-500.0,0.00017894,2]
[358446061,1745157038704,-500.0,0.00017894,2]
[358446062,1745157038714,-500.0,0.00017894,2]
[358446063,1745157038726,-500.0,0.00017894,2]
[358446064,1745157038735,-500.0,0.00017894,2]
[358446065,1745157038746,-500.0,0.00017894,2]
[358446066,1745157038755,-500.0,0.00017894,2]
[358446067,1745157038765,-500.0,0.00017894,2]
[358446068,1745157038774,-500.0,0.00017894,2]
[358446069,1745157038784,-500.0,0.00017894,2]
[358446070,1745157038793,-550.0,0.00017894,2]
[358446071,1745157038803,-378.64206666,0.00017894,2]
[358446072,1745157038813,-500.0,0.00017894,2]
[358446073,1745157038822,-500.0,0.00017894,2]
[358446074,1745157038832,-500.0,0.00017894,2]
[358446075,1745157038841,-500.0,0.00017894,2]
[358446076,1745157038851,-500.0,0.00017894,2]
[358446077,1745157038861,-500.0,0.00017894,2]
[358446078,1745157038871,-500.0,0.00017894,2]
[358446079,1745157038881,-500.0,0.00017894,2]
[358446080,1745157038891,-500.0,0.00017894,2]
[358446081,1745157038901,-500.0,0.00017894,2]
[358446082,1745157038911,-500.0,0.00017894,2]
[358446083,1745157038920,-500.0,0.00017894,2]
[358446084,1745157038931,-276.33490868,0.00017894,2]
[358446085,1745157038944,-223.66509132,0.00017894,2]
[358446086,1745157038954,-500.0,0.00017894,2]
[358446087,1745157038964,-27088.95991366,0.00017895,2]
[358446088,1745157038974,-460.64118935,0.00017895,2]
[358446089,1745157038983,-300.0,0.00017895,2]
[358446090,1745157038993,-24309.50992815,0.00017896,2]
[358446091,1745157039005,-1477.40258563,0.00017896,2]
[358446098,1745157043487,-49406.88888986,0.00017896,2]
[358446102,1745157046558,-51196.96790157,0.00017896,2]
[358446103,1745157046587,-1851.1980918,0.00017896,2]
[358446104,1745157046597,-5000.0,0.000179,2]
[358446105,1745157046606,-152.0,0.0001795,2]
[358446106,1745157046616,-500.0,0.00017973,2]
[358446107,1745157046627,-500.0,0.00017973,2]
[358446108,1745157046637,-500.54985394,0.00017973,2]
[358446109,1745157046646,-500.0,0.00017973,2]
[358446110,1745157046655,-500.0,0.00017973,2]
[358446111,1745157046666,-500.0,0.00017973,2]
[358446112,1745157046675,-500.0,0.00017973,2]
[358446113,1745157046685,-505.18792042,0.00017973,2]
[358446114,1745157046694,-500.0,0.00017973,2]
[358446115,1745157046703,-500.0,0.00017973,2]
[358446116,1745157046715,-500.0,0.00017973,2]
[358446117,1745157046726,-296.328688,0.00017973,2]
[358446118,1745157046737,-501.1063021,0.00017973,2]
[358446119,1745157046748,-500.43607942,0.00017973,2]
[358446120,1745157046757,-500.0,0.00017973,2]
[358446121,1745157046767,-252.17463961,0.00017973,2]
[358446122,1745157046779,-247.82536039,0.00017973,2]
[358446123,1745157046788,-160.52180996,0.00017973,2]
[358446124,1745157046798,-163.10941306,0.00017973,2]
[358446125,1745157046807,-738.08966171,0.00017995,2]
[358446126,1745157046817,-151.0,0.00017998,2]
[358446127,1745157046826,-156.814661,0.00017998,2]
[358446128,1745157046835,-504.41751796,0.00017998,2]
[358446129,1745157046845,-2399.26517271,0.00018,2]
[358446132,1745157471947,-11536.0,0.00016892,2]
[358446176,1745158232534,-250.0,0.0001687,2]
[358446177,1745158232545,-213.3977178,0.00016888,2]
[358446178,1745158232556,-956.09976312,0.00016892,2]
[358446179,1745158232569,-2338.46496528,0.00016892,2]
[358446180,1745158232580,-152.9163185,0.00017799,2]
[358446181,1745158232591,-412.3877676,0.00017799,2]
[358446182,1745158232600,-160.0,0.00017803,2]
[358446183,1745158232610,-152.91631848,0.00017814,2]
[358446184,1745158232622,-152.91631848,0.00017829,2]
[358446185,1745158232631,-300.0,0.00017888,2]
[358446186,1745158232641,-300.0,0.00017888,2]
[358446187,1745158232651,-300.0,0.00017889,2]
[358446188,1745158232661,-414.8,0.00017889,2]
[358446189,1745158232672,-11199.46235109,0.00017889,2]
[358446190,1745158232713,-4046.63890435,0.00017889,2]
[358446193,1745158232752,-8142.4338782,0.00017889,2]
[358446194,1745158232761,-397.42,0.0001789,3]
[358446195,1745158232770,-198.71,0.0001789,3]
[358446196,1745158232779,-596.16,0.0001789,3]
[358446197,1745158232788,-563.89,0.0001789,3]
[358446198,1745158232798,-281.95,0.0001789,3]
[358446199,1745158232807,-845.87,0.0001789,3]
[358446200,1745158232816,-281.94,0.0001789,3]
[358446201,1745158232826,-845.87,0.0001789,3]
[358446202,1745158232836,-500.0,0.00017898,2]
[358446203,1745158232846,-500.0,0.00017898,2]
[358446204,1745158232857,-191.72352887,0.00017898,2]
[358446205,1745158232867,-500.0,0.00017898,2]
[358446206,1745158232876,-500.0,0.00017898,2]
[358446207,1745158232886,-500.0,0.00017898,2]
[358446208,1745158232897,-500.0,0.00017898,2]
[358446209,1745158232906,-500.0,0.00017898,2]
[358446210,1745158232916,-500.0,0.00017898,2]
[358446211,1745158232926,-500.0,0.00017898,2]
[358446212,1745158232935,-500.0,0.00017898,2]
[358446213,1745158232945,-500.0,0.00017898,2]
[358446214,1745158232954,-500.0,0.00017898,2]
[358446215,1745158232964,-500.0,0.00017898,2]
[358446216,1745158232973,-500.0,0.00017898,2]
[358446217,1745158232982,-500.0,0.00017899,2]
[358446218,1745158232991,-395.11854671,0.00017899,2]
[358446219,1745158233001,-151.0,0.00017899,2]
[358446220,1745158233010,-163.84704066,0.00017899,2]
[358446221,1745158233020,-151.0,0.00017899,2]
[358446222,1745158233030,-300.84139123,0.00017899,2]
[358446223,1745158233039,-151.0,0.00017899,2]
[358446224,1745158233049,-151.0,0.00017899,2]
[358446225,1745158233059,-151.0,0.00017899,2]
[358446226,1745158233068,-151.0,0.00017899,2]
[358446227,1745158233077,-301.92447222,0.00017899,2]
[358446228,1745158233086,-151.0,0.00017899,2]
[358446229,1745158233096,-195.0893801,0.00017899,2]
[358446230,1745158233106,-151.0,0.00017899,2]
[358446231,1745158233115,-151.0,0.00017899,2]
[358446232,1745158233125,-151.0,0.00017899,2]
[358446233,1745158233135,-284.107809,0.00017899,2]
[358446234,1745158233144,-300.07384637,0.00017899,2]
[358446235,1745158233154,-208.62386263,0.00017899,2]
[358446236,1745158233163,-151.0,0.00017899,2]
[358446237,1745158233172,-4083.92643732,0.000179,2]
[358446238,1745158233182,-99812.53209272,0.000179,2]
[358446246,1745158238774,-500.0,0.00017898,2]
[358446247,1745158238783,-500.0,0.00017898,2]
[358446248,1745158238793,-500.0,0.00017898,2]
[358446249,1745158238802,-500.0,0.00017898,2]
[358446250,1745158238811,-8.43032298,0.00017898,2]
[358446251,1745158238822,-491.56967702,0.00017898,2]
[358446252,1745158238831,-500.0,0.00017898,2]
[358446253,1745158238841,-425.22299196,0.00017898,2]
[358446254,1745158238942,-74.77700804,0.00017898,2]
[358446255,1745158238951,-500.0,0.00017898,2]
[358446256,1745158238961,-587.51339907,0.00017898,2]
[358446257,1745158238970,-500.0,0.00017898,2]
[358446259,1745158238979,-500.0,0.00017898,2]
[358446260,1745158238988,-500.0,0.00017898,2]
[358446261,1745158238997,-500.0,0.00017898,2]
[358446262,1745158239007,-164.20296742,0.00017898,2]
[358446263,1745158239016,-500.0,0.00017898,2]
[358446264,1745158239025,-500.0,0.00017898,2]
[358446265,1745158239033,-500.0,0.00017898,2]
[358446266,1745158239042,-500.0,0.00017898,2]
[358446267,1745158239051,-500.0,0.00017898,2]
[358446268,1745158239060,-1330.06869257,0.000179,3]
[358446272,1745158241070,-2560.00939632,0.000179,3]
[358446285,1745158243768,-148.36672829,0.000179,3]
[358446286,1745158243777,-2539.15468645,0.000179,2]
[358446305,1745158246682,-3242.5869787,0.000179,2]
[358446317,1745158649547,1000.0,0.00016,30]
[358446385,1745159431813,-224.35416779,0.00016736,2]
[358446387,1745159431825,-577.7663654,0.00016736,2]
[358446390,1745159431838,-300.0,0.0001679,2]
[358446392,1745159431851,-300.0,0.0001679,2]
[358446395,1745159431863,-300.0,0.0001679,2]
[358446397,1745159431875,-23994.0294416,0.00016791,2]
[358446399,1745159431887,-95061.37122818,0.00016835,2]
[358446401,1745159431899,-24900.0,0.00016836,2]
[358446404,1745159431911,-370.8573067,0.00016836,2]
[358446406,1745159431922,-378.7091478,0.00016858,2]
[358446408,1745159431935,-3687.6022185,0.00016891,2]
[358446411,1745159431947,-1000.0,0.00017698,2]
[358446413,1745159431958,-152.0,0.00017719,2]
[358446415,1745159431969,-6570.35876143,0.00017771,2]
[358446417,1745159431980,-154.455814,0.00017771,2]
[358446419,1745159431991,-1231.422603,0.00017771,2]
[358446421,1745159432001,-1231.422603,0.00017771,2]
[358446422,1745159432013,-1231.422603,0.00017771,2]
[358446423,1745159432024,-1231.422603,0.00017771,2]
[358446424,1745159432038,-1231.422603,0.00017771,2]
[358446425,1745159432049,-1231.422603,0.00017771,2]
[358446426,1745159432060,-1231.422603,0.00017771,2]
[358446428,1745159432072,-1231.422603,0.00017771,2]
[358446430,1745159432083,-1231.422603,0.00017771,2]
[358446431,1745159432093,-1231.422603,0.00017771,2]
[358446432,1745159432103,-1231.422603,0.00017771,2]
[358446433,1745159432114,-1231.422603,0.00017771,2]
[358446434,1745159432125,-1231.422603,0.00017771,2]
[358446435,1745159432137,-1231.422603,0.00017771,2]
[358446436,1745159432147,-1231.422603,0.00017771,2]
[358446437,1745159432159,-1231.422603,0.00017771,2]
[358446438,1745159432171,-1231.422603,0.00017771,2]
[358446439,1745159432182,-1231.422603,0.00017771,2]
[358446440,1745159432194,-1231.422603,0.00017771,2]
[358446441,1745159432207,-1231.42260443,0.00017771,2]
[358446442,1745159432223,-151.0,0.00017771,2]
[358446443,1745159432235,-151.0,0.00017771,2]
[358446444,1745159432247,-151.0,0.00017771,2]
[358446445,1745159432260,-186.497797,0.00017771,2]
[358446446,1745159432271,-153.81044,0.00017771,2]
[358446447,1745159432285,-500.0,0.00017771,2]
[358446448,1745159432298,-500.0,0.00017771,2]
[358446449,1745159432309,-7484.26280912,0.00017771,2]
[358446450,1745159432320,-500.0,0.00017771,2]
[358446451,1745159432331,-500.0,0.00017771,2]
[358446452,1745159432341,-7484.26280912,0.00017771,2]
[358446453,1745159432351,-500.0,0.00017771,2]
[358446454,1745159432361,-500.0,0.00017771,2]
[358446455,1745159432373,-500.0,0.00017771,2]
[358446456,1745159432384,-7484.26280912,0.00017771,2]
[358446457,1745159432396,-500.0,0.00017771,2]
[358446458,1745159432410,-500.0,0.00017771,2]
[358446459,1745159432422,-500.0,0.00017771,2]
[358446460,1745159432434,-7484.26280912,0.00017771,2]
[358446461,1745159432444,-500.0,0.00017771,2]
[358446462,1745159432454,-7484.26280912,0.00017771,2]
[358446463,1745159432464,-500.0,0.00017771,2]
[358446464,1745159432475,-500.0,0.00017771,2]
[358446465,1745159432487,-7484.26280912,0.00017771,2]
[358446466,1745159432498,-500.0,0.00017771,2]
[358446467,1745159432510,-500.0,0.00017771,2]
[358446468,1745159432521,-7484.26280912,0.00017771,2]
[358446469,1745159432532,-500.0,0.00017771,2]
[358446470,1745159432542,-7484.26280912,0.00017771,2]
[358446471,1745159432553,-500.0,0.00017771,2]
[358446472,1745159432563,-500.0,0.00017771,2]
[358446473,1745159432574,-500.0,0.00017771,2]
[358446474,1745159432585,-500.0,0.00017771,2]
[358446475,1745159432596,-7484.26280912,0.00017771,2]
[358446476,1745159432607,-500.0,0.00017771,2]
[358446477,1745159432618,-500.0,0.00017771,2]
[358446478,1745159432628,-7484.26280912,0.00017771,2]
[358446479,1745159432639,-500.0,0.00017771,2]
[358446480,1745159432650,-500.0,0.00017771,2]
[358446481,1745159432661,-614.46367938,0.00017771,2]
[358446482,1745159432672,-7484.26280912,0.00017771,2]
[358446483,1745159432683,-500.0,0.00017771,2]
[358446484,1745159432694,-500.0,0.00017771,2]
[358446485,1745159432704,-7484.26280912,0.00017771,2]
[358446486,1745159432714,-500.0,0.00017771,2]
[358446487,1745159432725,-500.0,0.00017771,2]
[358446488,1745159432735,-7484.26280912,0.00017771,2]
[358446489,1745159432745,-500.0,0.00017771,2]
[358446490,1745159432756,-7484.26280912,0.00017771,2]
[358446491,1745159432766,-508.98439244,0.00017771,2]
[358446492,1745159432777,-7484.26280912,0.00017771,2]
[358446493,1745159432788,-7484.26280912,0.00017771,2]
[358446494,1745159432799,-500.0,0.00017771,2]
[358446495,1745159432809,-7484.26280912,0.00017771,2]
[358446496,1745159432820,-500.0,0.00017771,2]
[358446497,1745159432831,-7484.26280912,0.00017771,2]
[358446498,1745159432844,-7484.26280912,0.00017771,2]
[358446499,1745159432854,-7484.26280912,0.00017771,2]
[358446500,1745159432865,-7484.26280912,0.00017771,2]
[358446501,1745159432875,-7484.26280912,0.00017771,2]
[358446502,1745159432886,-500.0,0.00017771,2]
[358446503,1745159432897,-7484.26280912,0.00017771,2]
[358446504,1745159432908,-7484.26280912,0.00017771,2]
[358446505,1745159432919,-7484.26280912,0.00017771,2]
[358446506,1745159432929,-7484.26280912,0.00017771,2]
[358446507,1745159432939,-7484.26280912,0.00017771,2]
[358446508,1745159432950,-7484.26280912,0.00017771,2]
[358446509,1745159432960,-7484.26280912,0.00017771,2]
[358446510,1745159432970,-2252.04981698,0.00017771,2]
[358446511,1745159432985,-5232.21299214,0.00017771,2]
[358446512,1745159432995,-7484.26280912,0.00017771,2]
[358446513,1745159433006,-7484.26280912,0.00017771,2]
[358446514,1745159433016,-7484.26280912,0.00017771,2]
[358446515,1745159433027,-7484.26280912,0.00017771,2]
[358446516,1745159433039,-7484.26280912,0.00017771,2]
[358446517,1745159433050,-7484.26280912,0.00017771,2]
[358446518,1745159433062,-7484.26280912,0.00017771,2]
[358446519,1745159433073,-7484.26280912,0.00017771,2]
[358446520,1745159433084,-7484.26280912,0.00017771,2]
[358446521,1745159433095,-7484.26280912,0.00017771,2]
[358446522,1745159433106,-7484.26280912,0.00017771,2]
[358446523,1745159433117,-7484.26280912,0.00017771,2]
[358446524,1745159433128,-7484.26280912,0.00017771,2]
[358446525,1745159433139,-7484.26280912,0.00017771,2]
[358446526,1745159433150,-7484.26280912,0.00017771,2]
[358446527,1745159433162,-7484.26280912,0.00017771,2]
[358446528,1745159433172,-10873.57944527,0.00017771,2]
[358446529,1745159433183,-10873.57944527,0.00017771,2]
[358446530,1745159433194,-10873.57944527,0.00017771,2]
[358446531,1745159433205,-10873.57944527,0.00017771,2]
[358446532,1745159433217,-10873.57944527,0.00017771,2]
[358446533,1745159433227,-10873.57944527,0.00017771,2]
[358446534,1745159433236,-10873.57944527,0.00017771,2]
[358446535,1745159433247,-10873.57944527,0.00017771,2]
[358446536,1745159433423,-10873.57944527,0.00017771,2]
[358446537,1745159433434,-10873.57944527,0.00017771,2]
[358446538,1745159433443,-10873.57944527,0.00017771,2]
[358446539,1745159433453,-10873.57944527,0.00017771,2]
[358446540,1745159433463,-10873.57944527,0.00017771,2]
[358446541,1745159433472,-10873.57944527,0.00017771,2]
[358446542,1745159433482,-10873.57944527,0.00017771,2]
[358446543,1745159433492,-10873.57944527,0.00017771,2]
[358446544,1745159433501,-10873.57944527,0.00017771,2]
[358446545,1745159433511,-10873.57944527,0.00017771,2]
[358446546,1745159433520,-10873.57944527,0.00017771,2]
[358446547,1745159433530,-10873.57944527,0.00017771,2]
[358446548,1745159433540,-10873.57944527,0.00017771,2]
[358446549,1745159433550,-10873.57944527,0.00017771,2]
[358446550,1745159433559,-10873.57944527,0.00017771,2]
[358446551,1745159433569,-10873.57944527,0.00017771,2]
[358446552,1745159433579,-10873.57944527,0.00017771,2]
[358446553,1745159433588,-10873.57944527,0.00017771,2]
[358446554,1745159433599,-10873.57944527,0.00017771,2]
[358446555,1745159433609,-10873.57944527,0.00017771,2]
[358446556,1745159433619,-10873.57944527,0.00017771,2]
[358446557,1745159433628,-10873.57944527,0.00017771,2]
[358446558,1745159433638,-10873.57944527,0.00017771,2]
[358446559,1745159433647,-10873.57944527,0.00017771,2]
[358446560,1745159433657,-10873.57944527,0.00017771,2]
[358446561,1745159433667,-10873.57944527,0.00017771,2]
[358446562,1745159433676,-10873.57944527,0.00017771,2]
[358446563,1745159433686,-11417.25841753,0.00017771,2]
[358446564,1745159433696,-11417.25841753,0.00017771,2]
[358446565,1745159433705,-11417.25841753,0.00017771,2]
[358446566,1745159433715,-11417.25841753,0.00017771,2]
[358446567,1745159433725,-11417.25841753,0.00017771,2]
[358446568,1745159433734,-11417.25841753,0.00017771,2]
[358446569,1745159433744,-11417.25841753,0.00017771,2]
[358446570,1745159433754,-11417.25841753,0.00017771,2]
[358446571,1745159433763,-11417.25841753,0.00017771,2]
[358446572,1745159433773,-50000.0,0.00017772,2]
[358446573,1745159433783,-500.0,0.00017773,2]
[358446574,1745159433794,-500.0,0.00017773,2]
[358446575,1745159433804,-500.0,0.00017773,2]
[358446576,1745159433813,-500.0,0.00017773,2]
[358446577,1745159433823,-505.82887132,0.00017773,2]
[358446578,1745159433833,-500.0,0.00017773,2]
[358446579,1745159433842,-500.0,0.00017773,2]
[358446580,1745159433852,-176.488,0.00017797,2]
[358446581,1745159433862,-30757.31917398,0.00017798,2]
[358446582,1745159433872,-160.0,0.00017814,2]
[358446583,1745159433881,-234.71,0.00017815,3]
[358446584,1745159433890,-704.14,0.00017815,3]
[358446585,1745159433900,-151.0,0.00017825,2]
[358446586,1745159433910,-151.542599,0.00017825,2]
[358446587,1745159433920,-156.612074,0.00017825,2]
[358446588,1745159433930,-225.44037,0.00017825,2]
[358446589,1745159433940,-225.44037,0.00017825,2]
[358446590,1745159433950,-225.44037,0.00017825,2]
[358446591,1745159433960,-225.44037,0.00017825,2]
[358446592,1745159433970,-225.44037,0.00017825,2]
[358446593,1745159433980,-225.44037,0.00017825,2]
[358446594,1745159433990,-225.44037,0.00017825,2]
[358446595,1745159433999,-225.44037,0.00017825,2]
[358446596,1745159434008,-225.44037,0.00017825,2]
[358446597,1745159434018,-225.44037,0.00017825,2]
[358446598,1745159434027,-225.44037,0.00017825,2]
[358446599,1745159434037,-225.44037,0.00017825,2]
[358446600,1745159434047,-225.44037,0.00017825,2]
[358446601,1745159434056,-225.44037,0.00017825,2]
[358446602,1745159434066,-225.44037,0.00017825,2]
[358446603,1745159434075,-225.44037,0.00017825,2]
[358446604,1745159434085,-225.44037,0.00017825,2]
[358446605,1745159434095,-225.44037,0.00017825,2]
[358446606,1745159434104,-225.44037,0.00017825,2]
[358446607,1745159434113,-225.440365,0.00017825,2]
[358446608,1745159434123,-938.82,0.00017846,3]
[358446609,1745159434133,-469.41,0.00017846,3]
[358446610,1745159434143,-151.0,0.00017856,2]
[358446611,1745159434153,-158.488652,0.00017856,2]
[358446612,1745159434162,-151.0,0.00017856,2]